fUSD/lending_fUSD_20241230
["ID","MTS","AMOUNT","RATE_DAILY","PERIOD"]
[347173603,1735546168111,-1984.451,0.00013059,2]
[347173604,1735546168489,424.07,0.00011491,2]
[347173605,1735546171093,-4765.34071106,0.00013059,2]
[347173606,1735546174127,-6535.48514647,0.00013059,2]
[347173607,1735546194029,231.24,0.00010137,2]
[347173609,1735546232387,-2449.72314247,0.00013059,2]
[347173610,1735546232397,-424.07,0.00013755,2]
[347173611,1735546232407,-3988.04283569,0.00014164,2]
[347173612,1735546232440,-4059.00432672,0.00014164,2]
[347173613,1735546232452,-1952.95283759,0.00014164,2]
[347173614,1735546232462,-229.26024998,0.00014278,2]
[347173615,1735546232474,-70.73975002,0.00014278,2]
[347173616,1735546232483,-325.95096486,0.00014279,2]
[347173617,1735546232495,-660.36903514,0.00014279,2]
[347173618,1735546232505,-1779.46,0.00014279,2]
[347173619,1735546232515,-3633.59,0.00014279,2]
[347173620,1735546232524,-500.0,0.00014279,2]
[347173621,1735546232534,-907.04,0.00014279,2]
[347173622,1735546232543,-500.0,0.00014279,2]
[347173623,1735546232553,-628.36,0.00014279,2]
[347173624,1735546232562,-500.0,0.00014279,2]
[347173625,1735546232571,-1352.83,0.00014279,2]
[347173626,1735546232580,-516.63,0.00014279,2]
[347173627,1735546232590,-486.19761524,0.00014279,2]
[347173628,1735546232600,-500.0,0.00014279,2]
[347173629,1735546232610,-642.29,0.00014279,2]
[347173630,1735546232619,-2300.4,0.00014279,2]
[347173631,1735546232628,-1252.06,0.00014279,2]
[347173632,1735546232638,-500.0,0.00014279,2]
[347173633,1735546232647,-1023.81,0.00014279,2]
[347173634,1735546232656,-1440.81,0.00014279,2]
[347173635,1735546232674,-3171.09939406,0.0001428,2]
[347173636,1735546232690,-574.46465704,0.0001428,2]
[347173637,1735546232708,-13196.13653411,0.0001428,2]
[347173638,1735546232720,-1164.44999995,0.0001428,2]
[347173664,1735546233107,-1396.50221221,0.0001428,2]
[347173666,1735546233119,-330.23018751,0.0001428,2]
[347173669,1735546238282,-562.73308836,0.00014279,2]
[347173670,1735546238295,-253.43691164,0.00014279,2]
[347173671,1735546238304,-505.80851452,0.00014279,2]
[347173672,1735546238313,-298.33574914,0.0001428,2]
[347173673,1735546238324,-500.0,0.0001428,2]
[347173674,1735546238341,-25024.80179001,0.0001428,2]
[347173675,1735546238353,-356.16340006,0.0001428,2]
[347173676,1735546238364,-433.70534822,0.0001428,2]
[347173677,1735546238375,-318.93789218,0.0001428,2]
[347173678,1735546238443,-200087.21173803,0.0001428,2]
[347173679,1735546238452,-150.0,0.00014286,2]
[347173680,1735546238461,-162.27079327,0.00014293,2]
[347173681,1735546238470,-5800.0,0.00014332,2]
[347173682,1735546238479,-5800.0,0.00014341,2]
[347173683,1735546238487,-5800.0,0.00014349,2]
[347173684,1735546238497,-5800.0,0.00014358,2]
[347173685,1735546238506,-5800.0,0.00014366,2]
[347173686,1735546238515,-5800.0,0.00014375,2]
[347173687,1735546238524,-5800.0,0.00014383,2]
[347173688,1735546238533,-150.0,0.0001439,2]
[347173689,1735546238543,-5800.0,0.00014392,2]
[347173690,1735546238552,-4015.9468,0.00014399,2]
[347173691,1735546238561,-393.647319,0.000144,2]
[347173692,1735546238570,-194.73559054,0.000144,2]
[347173693,1735546238580,-5800.0,0.000144,2]
[347173694,1735546238589,-1330.89448008,0.000144,2]
[347173695,1735546238599,-162.27079327,0.000144,2]
[347173696,1735546238608,-7149.01166254,0.000144,2]
[347173697,1735546238617,-151.5114802,0.000144,2]
[347173698,1735546238626,-393.64731896,0.00014404,2]
[347173699,1735546238635,-393.64731896,0.00014407,2]
[347173700,1735546238644,-393.64731896,0.00014411,2]
[347173701,1735546238653,-393.64731896,0.00014414,2]
[347173702,1735546238662,-393.64731896,0.00014418,2]
[347173703,1735546238672,-9488.88049888,0.00014419,2]
[347173704,1735546238681,-393.64731896,0.00014421,2]
[347173705,1735546238690,-9488.88049888,0.00014421,2]
[347173706,1735546238699,-26966.0,0.00014466,2]
[347173707,1735546238707,-500.0,0.00014473,2]
[347173708,1735546238717,-500.72810466,0.00014473,2]
[347173709,1735546238726,-500.0,0.00014473,2]
[347173710,1735546238735,-2250.0,0.0001449,2]
[347173711,1735546238744,-183.01540753,0.00014493,2]
[347173712,1735546238753,-150.0,0.00014493,2]
[347173714,1735546238762,-202.7623747,0.00014493,2]
[347173716,1735546238771,-201.36416489,0.00014493,2]
[347173717,1735546238780,-372.14111368,0.00014498,2]
[347173719,1735546238789,-219.8941,0.00014499,2]
[347173722,1735546238799,-205.5424937,0.00014499,2]
[347173723,1735546238809,-500.0,0.00014499,2]
[347173725,1735546238819,-500.0,0.00014499,2]
[347173728,1735546238829,-505.31268541,0.00014499,2]
[347173729,1735546238838,-500.0,0.00014499,2]
[347173731,1735546238848,-500.0,0.00014499,2]
[347173733,1735546238858,-514.43188368,0.00014499,2]
[347173735,1735546238867,-503.84272251,0.00014499,2]
[347173737,1735546238876,-500.0,0.00014499,2]
[347173739,1735546238885,-505.53741618,0.00014499,2]
[347173741,1735546238895,-503.87051831,0.00014499,2]
[347173743,1735546238904,-509.34728707,0.00014499,2]
[347173745,1735546238913,-505.53697583,0.00014499,2]
[347173748,1735546238922,-502.75364244,0.00014499,2]
[347173751,1735546238931,-500.0,0.00014499,2]
[347173754,1735546238941,-500.0,0.00014499,2]
[347173757,1735546238949,-522.17,0.00014499,2]
[347173760,1735546238959,-500.0,0.00014499,2]
[347173762,1735546238968,-500.0,0.00014499,2]
[347173764,1735546238977,-500.0,0.00014499,2]
[347173766,1735546238986,-500.0,0.00014499,2]
[347173768,1735546238995,-502.54957044,0.00014499,2]
[347173770,1735546239004,-506.92547689,0.00014499,2]
[347173772,1735546239013,-500.0,0.00014499,2]
[347173774,1735546239023,-500.0,0.00014499,2]
[347173776,1735546239032,-502.51466044,0.00014499,2]
[347173778,1735546239042,-501.70372156,0.00014499,2]
[347173780,1735546239051,-500.0,0.00014499,2]
[347173782,1735546239060,-505.66428549,0.00014499,2]
[347173784,1735546239069,-503.78681212,0.00014499,2]
[347173786,1735546239078,-501.95950456,0.00014499,2]
[347173788,1735546239087,-505.31786958,0.00014499,2]
[347173790,1735546239097,-503.66258552,0.00014499,2]
[347173792,1735546239106,-501.53457361,0.00014499,2]
[347173814,1735546239293,-500.0,0.00014499,2]
[347173816,1735546239303,-503.43947093,0.00014499,2]
[347173818,1735546239314,-900.6,0.00014499,2]
[347173820,1735546239323,-500.0,0.00014499,2]
[347173822,1735546239332,-502.09595401,0.00014499,2]
[347173824,1735546239343,-500.0,0.00014499,2]
[347173826,1735546239353,-500.0,0.00014499,2]
[347173828,1735546239363,-505.4198152,0.00014499,2]
[347173830,1735546239374,-504.30903173,0.00014499,2]
[347173832,1735546239386,-500.0,0.00014499,2]
[347173834,1735546239395,-500.0,0.00014499,2]
[347173836,1735546239405,-500.0,0.00014499,2]
[347173838,1735546239414,-534.91,0.00014499,2]
[347173840,1735546239425,-500.0,0.00014499,2]
[347173842,1735546239435,-500.0,0.00014499,2]
[347173844,1735546239444,-500.0,0.00014499,2]
[347173846,1735546239454,-509.29207725,0.00014499,2]
[347173848,1735546239463,-500.0,0.00014499,2]
[347173850,1735546239473,-883.46,0.00014499,2]
[347173852,1735546239482,-353.1280861,0.00014499,2]
[347173854,1735546239490,-1073.88,0.00014499,2]
[347173856,1735546239500,-502.58782941,0.00014499,2]
[347173858,1735546239509,-500.0,0.00014499,2]
[347173860,1735546239518,-500.0,0.00014499,2]
[347173861,1735546239528,-504.92325947,0.00014499,2]
[347173862,1735546239537,-500.0,0.00014499,2]
[347173863,1735546239546,-500.0,0.00014499,2]
[347173864,1735546239555,-819.84,0.00014499,2]
[347173865,1735546239564,-500.0,0.00014499,2]
[347173866,1735546239573,-500.0,0.00014499,2]
[347173867,1735546239583,-502.2009826,0.00014499,2]
[347173868,1735546239592,-500.0,0.00014499,2]
[347173869,1735546239601,-505.72749038,0.00014499,2]
[347173871,1735546239611,-500.0,0.00014499,2]
[347173873,1735546239620,-971.67,0.00014499,2]
[347173875,1735546239629,-500.0,0.00014499,2]
[347173877,1735546239638,-502.58189472,0.00014499,2]
[347173879,1735546239647,-500.0,0.00014499,2]
[347173881,1735546239656,-500.0,0.00014499,2]
[347173883,1735546239665,-500.0,0.00014499,2]
[347173885,1735546239674,-561.2,0.00014499,2]
[347173887,1735546239683,-501.86209126,0.00014499,2]
[347173889,1735546239692,-504.3078164,0.00014499,2]
[347173891,1735546239701,-501.94901831,0.00014499,2]
[347173893,1735546239710,-502.90864533,0.00014499,2]
[347173895,1735546239719,-500.0,0.00014499,2]
[347173897,1735546239728,-506.23647853,0.00014499,2]
[347173899,1735546239737,-402.50886335,0.00014499,2]
[347173901,1735546239746,-500.0,0.00014499,2]
[347173903,1735546239756,-477.48845389,0.00014499,2]
[347173905,1735546239765,-501.55807031,0.00014499,2]
[347173907,1735546239774,-361.41435101,0.00014499,2]
[347173909,1735546239783,-500.0,0.00014499,2]
[347173911,1735546239792,-507.38707007,0.00014499,2]
[347173913,1735546239801,-500.0,0.00014499,2]
[347173915,1735546239812,-500.0,0.00014499,2]
[347173917,1735546239821,-500.0,0.00014499,2]
[347173919,1735546239831,-500.0,0.00014499,2]
[347173921,1735546239841,-500.0,0.00014499,2]
[347173923,1735546239851,-500.0,0.00014499,2]
[347173925,1735546239861,-500.0,0.00014499,2]
[347173927,1735546239870,-703.81,0.00014499,2]
[347173929,1735546239880,-500.0,0.00014499,2]
[347173931,1735546239889,-500.0,0.00014499,2]
[347173933,1735546239899,-500.0,0.00014499,2]
[347173934,1735546239908,-500.0,0.00014499,2]
[347173935,1735546239918,-500.0,0.00014499,2]
[347173936,1735546239927,-500.0,0.00014499,2]
[347173937,1735546239937,-236.64686483,0.00014499,2]
[347173938,1735546239946,-500.0,0.00014499,2]
[347173939,1735546239955,-500.0,0.00014499,2]
[347173940,1735546239965,-500.0,0.00014499,2]
[347173941,1735546239974,-941.6,0.00014499,2]
[347173942,1735546239985,-500.0,0.00014499,2]
[347173943,1735546239996,-500.0,0.00014499,2]
[347173944,1735546240005,-500.0,0.00014499,2]
[347173945,1735546240015,-500.0,0.00014499,2]
[347173946,1735546240024,-946.81,0.00014499,2]
[347173947,1735546240035,-500.0,0.00014499,2]
[347173948,1735546240045,-500.0,0.00014499,2]
[347173949,1735546240054,-500.0,0.00014499,2]
[347173950,1735546240064,-500.0,0.00014499,2]
[347173951,1735546240074,-500.0,0.00014499,2]
[347173952,1735546240084,-500.0,0.00014499,2]
[347173953,1735546240094,-500.0,0.00014499,2]
[347173954,1735546240104,-500.0,0.00014499,2]
[347173955,1735546240115,-500.0,0.00014499,2]
[347173956,1735546240124,-500.0,0.00014499,2]
[347173957,1735546240134,-500.0,0.00014499,2]
[347173958,1735546240143,-507.33417536,0.00014499,2]
[347173959,1735546240153,-500.0,0.00014499,2]
[347173960,1735546240162,-500.0,0.00014499,2]
[347173961,1735546240171,-1274.56,0.00014499,2]
[347173962,1735546240180,-500.0,0.00014499,2]
[347173963,1735546240190,-500.0,0.00014499,2]
[347173964,1735546240199,-500.0,0.00014499,2]
[347173965,1735546240208,-158.751718,0.00014499,2]
[347173966,1735546240217,-957.279327,0.00014499,2]
[347173967,1735546240227,-153.939526,0.00014499,2]
[347173968,1735546240236,-500.0,0.00014499,2]
[347173969,1735546240245,-500.0,0.00014499,2]
[347173970,1735546240255,-500.0,0.00014499,2]
[347173971,1735546240264,-500.0,0.00014499,2]
[347173972,1735546240273,-814.557482,0.00014499,2]
[347173973,1735546240283,-500.0,0.00014499,2]
[347173974,1735546240292,-1129.09,0.00014499,2]
[347173975,1735546240301,-500.0,0.00014499,2]
[347173976,1735546240311,-500.0,0.00014499,2]
[347173977,1735546240320,-607.06,0.00014499,2]
[347173978,1735546240330,-151.0,0.00014499,2]
[347173979,1735546240340,-521.21,0.00014499,2]
[347173980,1735546240351,-500.0,0.00014499,2]
[347173981,1735546240360,-517.61267049,0.00014499,2]
[347173982,1735546240369,-500.0,0.00014499,2]
[347173983,1735546240378,-500.0,0.00014499,2]
[347173984,1735546240389,-568.99,0.00014499,2]
[347173985,1735546240398,-500.0,0.00014499,2]
[347173986,1735546240408,-500.0,0.00014499,2]
[347173987,1735546240418,-500.0,0.00014499,2]
[347173988,1735546240427,-500.0,0.00014499,2]
[347173989,1735546240437,-1063.75,0.00014499,2]
[347173990,1735546240446,-500.0,0.00014499,2]
[347173991,1735546240455,-375.35101362,0.00014499,2]
[347173992,1735546240464,-621.18,0.00014499,2]
[347173993,1735546240474,-500.0,0.00014499,2]
[347173994,1735546240483,-500.0,0.00014499,2]
[347173995,1735546240491,-552.26,0.00014499,2]
[347173996,1735546240500,-1261.33,0.00014499,2]
[347173997,1735546240509,-500.0,0.00014499,2]
[347173998,1735546240519,-853.08,0.00014499,2]
[347173999,1735546240528,-500.0,0.00014499,2]
[347174000,1735546240537,-500.0,0.00014499,2]
[347174001,1735546240546,-500.0,0.00014499,2]
[347174002,1735546240555,-500.0,0.00014499,2]
[347174003,1735546240564,-500.0,0.00014499,2]
[347174004,1735546240573,-951.41,0.00014499,2]
[347174005,1735546240582,-516.7,0.00014499,2]
[347174006,1735546240592,-500.0,0.00014499,2]
[347174007,1735546240601,-500.0,0.00014499,2]
[347174008,1735546240611,-500.0,0.00014499,2]
[347174009,1735546240620,-500.0,0.00014499,2]
[347174010,1735546240629,-500.0,0.00014499,2]
[347174011,1735546240638,-500.0,0.00014499,2]
[347174012,1735546240647,-543.54,0.00014499,2]
[347174013,1735546240656,-500.0,0.00014499,2]
[347174014,1735546240665,-645.16060207,0.00014499,2]
[347174015,1735546240674,-1230.83,0.00014499,2]
[347174016,1735546240683,-503.14816613,0.00014499,2]
[347174017,1735546240692,-500.0,0.00014499,2]
[347174018,1735546240701,-503.42960171,0.00014499,2]
[347174020,1735546240710,-664.49,0.00014499,2]
[347174021,1735546240718,-504.94805857,0.00014499,2]
[347174022,1735546240727,-504.20616139,0.00014499,2]
[347174023,1735546240737,-1079.89,0.00014499,2]
[347174024,1735546240745,-503.38406987,0.00014499,2]
[347174025,1735546240755,-500.0,0.00014499,2]
[347174026,1735546240763,-501.19554798,0.00014499,2]
[347174027,1735546240772,-504.13128552,0.00014499,2]
[347174028,1735546240781,-502.64375839,0.00014499,2]
[347174030,1735546240790,-567.66,0.00014499,2]
[347174031,1735546240799,-500.0,0.00014499,2]
[347174032,1735546240809,-500.0,0.00014499,2]
[347174033,1735546240818,-500.0,0.00014499,2]
[347174034,1735546240827,-500.0,0.00014499,2]
[347174035,1735546240836,-500.0,0.00014499,2]
[347174036,1735546240846,-506.73446123,0.00014499,2]
[347174037,1735546240856,-500.0,0.00014499,2]
[347174038,1735546240865,-503.30854673,0.00014499,2]
[347174039,1735546240874,-508.8631575,0.00014499,2]
[347174040,1735546240883,-1078.27,0.00014499,2]
[347174041,1735546240892,-501.17858389,0.00014499,2]
[347174042,1735546240901,-502.50205913,0.00014499,2]
[347174043,1735546240911,-500.0,0.00014499,2]
[347174044,1735546240920,-503.60767593,0.00014499,2]
[347174045,1735546240929,-500.0,0.00014499,2]
[347174046,1735546240938,-500.0,0.00014499,2]
[347174047,1735546240948,-1173.89,0.00014499,2]
[347174048,1735546240957,-506.71953056,0.00014499,2]
[347174049,1735546240966,-500.0,0.00014499,2]
[347174050,1735546240975,-500.0,0.00014499,2]
[347174051,1735546240984,-500.0,0.00014499,2]
[347174052,1735546240993,-504.79004857,0.00014499,2]
[347174053,1735546241003,-377.22514544,0.00014499,2]
[347174054,1735546241012,-612.12,0.00014499,2]
[347174055,1735546241021,-720.74,0.00014499,2]
[347174056,1735546241030,-503.5803833,0.00014499,2]
[347174057,1735546241039,-505.32096942,0.00014499,2]
[347174058,1735546241048,-505.53708834,0.00014499,2]
[347174059,1735546241057,-500.0,0.00014499,2]
[347174060,1735546241066,-500.83599897,0.00014499,2]
[347174061,1735546241075,-503.66296659,0.00014499,2]
[347174062,1735546241085,-500.0,0.00014499,2]
[347174063,1735546241094,-503.65586014,0.00014499,2]
[347174064,1735546241103,-507.1785455,0.00014499,2]
[347174065,1735546241112,-500.0,0.00014499,2]
[347174066,1735546241122,-500.0,0.00014499,2]
[347174067,1735546241131,-502.48311314,0.00014499,2]
[347174068,1735546241140,-503.6865901,0.00014499,2]
[347174069,1735546241149,-502.28026498,0.00014499,2]
[347174070,1735546241158,-854.02,0.00014499,2]
[347174071,1735546241168,-1010.09,0.00014499,2]
[347174072,1735546241177,-501.53,0.00014499,2]
[347174073,1735546241187,-500.0,0.00014499,2]
[347174074,1735546241196,-500.0,0.00014499,2]
[347174075,1735546241205,-1784.16,0.00014499,2]
[347174076,1735546241215,-2174.41,0.00014499,2]
[347174077,1735546241224,-1328.1,0.00014499,2]
[347174078,1735546241234,-505.46300134,0.00014499,2]
[347174079,1735546241243,-508.74052195,0.00014499,2]
[347174080,1735546241253,-503.52158553,0.00014499,2]
[347174081,1735546241262,-500.0,0.00014499,2]
[347174082,1735546241271,-505.78667254,0.00014499,2]
[347174083,1735546241280,-680.91,0.00014499,2]
[347174084,1735546241289,-503.62797003,0.00014499,2]
[347174085,1735546241298,-503.27952188,0.00014499,2]
[347174086,1735546241307,-509.81191271,0.00014499,2]
[347174087,1735546241316,-1903.76,0.00014499,2]
[347174088,1735546241325,-500.0,0.00014499,2]
[347174089,1735546241334,-268.96649208,0.00014499,2]
[347174090,1735546241345,-503.08068191,0.00014499,2]
[347174091,1735546241354,-500.0,0.00014499,2]
[347174092,1735546241365,-502.66658994,0.00014499,2]
[347174093,1735546241374,-511.75494534,0.00014499,2]
[347174094,1735546241383,-502.31572578,0.00014499,2]
[347174095,1735546241392,-1059.79,0.00014499,2]
[347174096,1735546241401,-501.66908229,0.00014499,2]
[347174097,1735546241411,-500.0,0.00014499,2]
[347174098,1735546241421,-500.0,0.00014499,2]
[347174099,1735546241430,-500.0,0.00014499,2]
[347174100,1735546241440,-500.31,0.00014499,2]
[347174101,1735546241449,-500.0,0.00014499,2]
[347174102,1735546241458,-503.28584641,0.00014499,2]
[347174103,1735546241467,-502.69462527,0.00014499,2]
[347174104,1735546241476,-504.83023039,0.00014499,2]
[347174105,1735546241485,-501.35725774,0.00014499,2]
[347174106,1735546241494,-505.09792682,0.00014499,2]
[347174107,1735546241502,-2438.99,0.00014499,2]
[347174108,1735546241512,-500.0,0.00014499,2]
[347174109,1735546241521,-500.0,0.00014499,2]
[347174110,1735546241531,-502.77330877,0.00014499,2]
[347174111,1735546241540,-506.38336305,0.00014499,2]
[347174112,1735546241549,-1506.53,0.00014499,2]
[347174113,1735546241558,-500.0,0.00014499,2]
[347174114,1735546241567,-501.69941603,0.00014499,2]
[347174115,1735546241575,-1321.03,0.00014499,2]
[347174116,1735546241585,-500.75056128,0.00014499,2]
[347174117,1735546241594,-500.0,0.00014499,2]
[347174118,1735546241603,-689.54,0.00014499,2]
[347174119,1735546241612,-500.69984828,0.00014499,2]
[347174120,1735546241621,-504.55179181,0.00014499,2]
[347174121,1735546241631,-507.71662631,0.00014499,2]
[347174122,1735546241639,-545.47702374,0.00014499,2]
[347174123,1735546241648,-577.31369857,0.00014499,2]
[347174124,1735546241657,-510.41735017,0.00014499,2]
[347174125,1735546241666,-500.0,0.00014499,2]
[347174126,1735546241675,-500.0,0.00014499,2]
[347174127,1735546241684,-2654.84,0.00014499,2]
[347174128,1735546241693,-501.49179633,0.00014499,2]
[347174129,1735546241701,-500.0,0.00014499,2]
[347174130,1735546241711,-500.0,0.00014499,2]
[347174131,1735546241719,-500.0,0.00014499,2]
[347174132,1735546241728,-500.0,0.00014499,2]
[347174133,1735546241738,-500.0,0.00014499,2]
[347174134,1735546241747,-500.0,0.00014499,2]
[347174135,1735546241756,-500.0,0.00014499,2]
[347174136,1735546241765,-501.00999579,0.00014499,2]
[347174137,1735546241906,-500.0,0.00014499,2]
[347174138,1735546241916,-500.0,0.00014499,2]
[347174139,1735546241925,-500.0,0.00014499,2]
[347174140,1735546241934,-500.0,0.00014499,2]
[347174141,1735546241943,-500.0,0.00014499,2]
[347174142,1735546241953,-500.0,0.00014499,2]
[347174143,1735546241962,-500.0,0.00014499,2]
[347174144,1735546241971,-204.10571113,0.00014499,2]
[347174145,1735546241979,-977.15,0.00014499,2]
[347174146,1735546241988,-500.0,0.00014499,2]
[347174147,1735546241997,-508.92106461,0.00014499,2]
[347174148,1735546242006,-2238.46,0.00014499,2]
[347174149,1735546242015,-500.0,0.00014499,2]
[347174150,1735546242025,-505.2883164,0.00014499,2]
[347174151,1735546242034,-505.24717577,0.00014499,2]
[347174152,1735546242043,-500.0,0.00014499,2]
[347174153,1735546242053,-949.24,0.00014499,2]
[347174154,1735546242062,-758.02,0.00014499,2]
[347174155,1735546242071,-501.69516029,0.00014499,2]
[347174156,1735546242080,-634.89701736,0.00014499,2]
[347174157,1735546242089,-500.0,0.00014499,2]
[347174158,1735546242099,-780.6,0.00014499,2]
[347174159,1735546242108,-1113.62,0.00014499,2]
[347174160,1735546242117,-507.61889316,0.00014499,2]
[347174161,1735546242126,-4405.47,0.00014499,2]
[347174162,1735546242135,-668.12,0.00014499,2]
[347174163,1735546242144,-500.0,0.00014499,2]
[347174164,1735546242154,-503.63986173,0.00014499,2]
[347174165,1735546242163,-2624.3,0.00014499,2]
[347174166,1735546242171,-502.19783299,0.00014499,2]
[347174167,1735546242180,-501.82715581,0.00014499,2]
[347174168,1735546242189,-11075.43,0.00014499,2]
[347174169,1735546242198,-502.20746155,0.00014499,2]
[347174170,1735546242207,-504.11715597,0.00014499,2]
[347174171,1735546242216,-501.59451693,0.00014499,2]
[347174172,1735546242225,-503.60580581,0.00014499,2]
[347174173,1735546242235,-900.69,0.00014499,2]
[347174174,1735546242244,-399.31811381,0.00014499,2]
[347174175,1735546242253,-500.0,0.00014499,2]
[347174176,1735546242262,-500.0,0.00014499,2]
[347174177,1735546242271,-507.67186532,0.00014499,2]
[347174178,1735546242280,-927.9,0.00014499,2]
[347174179,1735546242289,-723.68,0.00014499,2]
[347174180,1735546242298,-504.08087931,0.00014499,2]
[347174181,1735546242307,-504.49799267,0.00014499,2]
[347174182,1735546242316,-501.92566839,0.00014499,2]
[347174183,1735546242325,-500.0,0.00014499,2]
[347174184,1735546242335,-1917.87,0.00014499,2]
[347174185,1735546242347,-504.9815748,0.00014499,2]
[347174186,1735546242356,-1428.31,0.00014499,2]
[347174187,1735546242366,-220.81381208,0.00014499,2]
[347174188,1735546242375,-500.0,0.00014499,2]
[347174189,1735546242385,-1522.42,0.00014499,2]
[347174190,1735546242394,-500.0,0.00014499,2]
[347174191,1735546242403,-502.34641958,0.00014499,2]
[347174192,1735546242412,-500.0,0.00014499,2]
[347174193,1735546242422,-500.0,0.00014499,2]
[347174194,1735546242431,-501.17085274,0.00014499,2]
[347174195,1735546242440,-500.0,0.00014499,2]
[347174196,1735546242451,-1851.36,0.00014499,2]
[347174197,1735546242466,-503.34738417,0.00014499,2]
[347174198,1735546242477,-502.12499258,0.00014499,2]
[347174199,1735546242487,-502.13450142,0.00014499,2]
[347174200,1735546242497,-505.60512605,0.00014499,2]
[347174201,1735546242506,-1104.12,0.00014499,2]
[347174202,1735546242515,-500.0,0.00014499,2]
[347174203,1735546242524,-502.83110907,0.00014499,2]
[347174204,1735546242533,-1868.0,0.00014499,2]
[347174205,1735546242543,-1353.63,0.00014499,2]
[347174206,1735546242552,-1164.33,0.00014499,2]
[347174207,1735546242561,-500.0,0.00014499,2]
[347174208,1735546242570,-500.59717283,0.00014499,2]
[347174209,1735546242579,-502.92697488,0.00014499,2]
[347174210,1735546242588,-638.03,0.00014499,2]
[347174211,1735546242598,-500.0,0.00014499,2]
[347174212,1735546242608,-503.56287957,0.00014499,2]
[347174213,1735546242617,-1684.62,0.00014499,2]
[347174214,1735546242626,-894.53,0.00014499,2]
[347174215,1735546242635,-511.17149724,0.00014499,2]
[347174216,1735546242644,-2957.46,0.00014499,2]
[347174217,1735546242653,-500.0,0.00014499,2]
[347174218,1735546242662,-500.0,0.00014499,2]
[347174219,1735546242671,-765.09,0.00014499,2]
[347174220,1735546242680,-500.57297429,0.00014499,2]
[347174221,1735546242689,-503.18415332,0.00014499,2]
[347174222,1735546242698,-506.00643522,0.00014499,2]
[347174223,1735546242707,-525.1196164,0.00014499,2]
[347174224,1735546242717,-500.0,0.00014499,2]
[347174225,1735546242726,-503.30478223,0.00014499,2]
[347174226,1735546242735,-1975.6,0.00014499,2]
[347174227,1735546242743,-500.0,0.00014499,2]
[347174228,1735546242752,-503.83176222,0.00014499,2]
[347174229,1735546242762,-500.0,0.00014499,2]
[347174230,1735546242771,-503.16703275,0.00014499,2]
[347174231,1735546242780,-1657.6,0.00014499,2]
[347174232,1735546242789,-1400.83,0.00014499,2]
[347174233,1735546242798,-500.0,0.00014499,2]
[347174234,1735546242807,-504.44454543,0.00014499,2]
[347174235,1735546242817,-503.88892863,0.00014499,2]
[347174236,1735546242826,-503.79006821,0.00014499,2]
[347174237,1735546242837,-502.8403271,0.00014499,2]
[347174238,1735546242848,-537.02,0.00014499,2]
[347174239,1735546242858,-500.0,0.00014499,2]
[347174240,1735546242867,-3210.9,0.00014499,2]
[347174241,1735546242876,-523.25794444,0.00014499,2]
[347174242,1735546242885,-730.78,0.00014499,2]
[347174243,1735546242894,-1193.67,0.00014499,2]
[347174244,1735546242903,-508.198254,0.00014499,2]
[347174245,1735546242912,-501.07968677,0.00014499,2]
[347174246,1735546242920,-4842.74,0.00014499,2]
[347174247,1735546242930,-764.6,0.00014499,2]
[347174248,1735546242939,-797.19,0.00014499,2]
[347174249,1735546242948,-500.0,0.00014499,2]
[347174250,1735546242956,-2833.56,0.00014499,2]
[347174251,1735546242965,-672.78,0.00014499,2]